bitfinex/quotes_SOLUSD_20240712
["timestamp","ask_amount","ask_price","bid_price","bid_amount"]
[1720745161148,49.2334,137.11,137.05,10.0]
[1720745161342,29.2339,137.1,137.05,10.0]
[1720745161550,41.94,137.09,137.05,10.0]
[1720745162152,49.2345,137.09,137.03,26.4699]
[1720745162863,41.94,137.09,137.03,26.4699]
[1720745163759,21.94,137.02,136.98,7.61429713]
[1720745164065,21.94,137.02,136.97,20.0]
[1720745164066,21.94,137.0,136.94,10.0]
[1720745164240,21.94,137.0,136.94,20.0]
[1720745164443,20.0,136.99,136.94,20.0]
[1720745164677,41.94,136.99,136.94,20.0]
[1720745164964,20.0,136.99,136.94,20.0]
[1720745165168,41.94,137.0,136.96,10.0]
[1720745165863,7.297,137.05,136.98,20.0]
[1720745166065,41.94,137.04,136.98,20.0]
[1720745167384,49.2376,137.04,136.98,20.0]
[1720745167565,29.2377,137.03,136.98,20.0]
[1720745167771,29.2377,137.03,136.98,10.0]
[1720745167965,20.0,137.02,136.98,10.0]
[1720745168153,49.2383,137.02,136.96,10.0]
[1720745170067,41.94,137.02,136.98,10.0]
[1720745170281,41.94,137.02,136.96,10.0]
[1720745171559,20.0,137.02,136.99,10.0]
[1720745171762,41.94,137.03,136.97,20.0]
[1720745172064,29.2383,137.02,136.97,20.0]
[1720745172264,20.0,137.01,136.97,20.0]
[1720745172567,20.0,137.01,136.97,10.0]
[1720745173090,57.0314,137.01,136.95,10.0]
[1720745173274,29.2393,137.0,136.95,10.0]
[1720745173478,20.0,136.99,136.95,10.0]
[1720745173657,41.94,136.99,136.94,10.0]
[1720745174063,41.94,136.99,136.93,10.0]
[1720745174269,49.2398,136.99,136.93,10.0]
[1720745174463,7.3005,136.98,136.93,10.0]
[1720745174681,20.0,136.97,136.93,10.0]
[1720745174988,20.0,136.97,136.95,10.0]
[1720745175196,27.2993,137.0,136.95,10.0]
[1720745175766,20.0,137.0,136.95,10.0]
[1720745175972,27.2994,137.0,136.95,10.0]
[1720745176386,27.2994,137.0,136.93,10.0]
[1720745176387,7.2999,136.99,136.93,10.0]
[1720745176568,20.0,136.98,136.93,10.0]
[1720745176764,41.94,136.98,136.93,10.0]
[1720745178766,41.94,136.98,136.91,10.0]
[1720745178965,29.2411,136.97,136.91,10.0]
[1720745179290,27.3015,136.96,136.91,10.0]
[1720745179587,20.0,136.96,136.91,10.0]
[1720745179892,20.0,136.96,136.93,10.0]
[1720745180394,20.0,136.97,136.93,10.0]
[1720745180767,41.94,136.97,136.91,10.0]
[1720745180983,20.0,136.97,136.94,10.0]
[1720745181671,20.0,136.97,136.92,20.0]
[1720745181866,20.0,136.97,136.92,10.0]
[1720745182069,49.2409,136.97,136.92,10.0]
[1720745183567,41.94,136.97,136.92,10.0]
[1720745184795,41.94,136.97,136.9,10.0]
[1720745185015,29.2425,136.94,136.9,10.0]
[1720745185193,20.0,136.93,136.9,10.0]
[1720745186002,7.3004,136.98,136.9,10.0]
[1720745186290,7.3003,136.98,136.92,10.0]
[1720745186491,20.0,136.97,136.92,10.0]
[1720745186896,21.94,136.97,136.92,10.0]
[1720745187191,20.0,136.96,136.92,10.0]
[1720745187888,20.0,136.97,136.92,10.0]
[1720745188191,49.2408,136.97,136.92,10.0]
[1720745188377,29.2417,136.96,136.9,10.0]
[1720745188585,20.0,136.95,136.9,10.0]
[1720745188786,27.3019,136.95,136.9,10.0]
[1720745189289,20.0,136.95,136.9,10.0]
[1720745189494,49.2419,136.95,136.9,10.0]
[1720745189884,20.0,136.95,136.9,10.0]
[1720745190186,41.94,136.95,136.9,10.0]
[1720745190593,49.242,136.95,136.9,10.0]
[1720745191684,41.94,136.95,136.9,10.0]
[1720745192702,49.2419,136.95,136.9,10.0]
[1720745195702,41.94,136.95,136.9,10.0]
[1720745196701,28.74,136.94,136.9,10.0]
[1720745196888,20.0,136.93,136.9,10.0]
[1720745198299,31.67301821,136.97,136.92,10.0]
[1720745198507,31.67301821,136.97,136.92,20.0]
[1720745199301,38.97381821,136.97,136.92,20.0]
[1720745199503,27.3014,136.96,136.92,10.0]
[1720745199798,20.0,136.96,136.92,10.0]
[1720745200402,27.3014,136.96,136.92,10.0]
[1720745200903,20.0,136.96,136.92,10.0]
[1720745203081,20.0,136.96,136.9,10.0]
[1720745203082,7.3019,136.95,136.9,10.0]
[1720745203317,48.74,136.94,136.9,10.0]
[1720745203481,20.0,136.93,136.9,10.0]
[1720745203903,20.0,136.93,136.9,20.0]
[1720745205314,20.0,136.93,136.9,10.0]
[1720745206091,28.74,136.94,136.9,20.0]
[1720745206288,20.0,136.93,136.9,10.0]
[1720745206803,20.0,136.93,136.9,20.0]
[1720745207007,28.74,136.94,136.9,20.0]
[1720745207203,28.74,136.94,136.9,10.0]
[1720745207410,28.74,136.94,136.9,20.0]
[1720745207997,28.74,136.94,136.9,10.0]
[1720745208404,28.74,136.94,136.9,20.0]
[1720745208913,28.74,136.94,136.9,10.0]
[1720745209097,28.74,136.94,136.9,20.0]
[1720745209411,28.74,136.94,136.9,10.0]
[1720745209720,28.74,136.94,136.92,10.0]
[1720745210795,28.74,136.97,136.94,10.0]
[1720745210990,20.0,136.96,136.94,10.0]
[1720745211387,2.96191477,137.0,136.96,10.0]
[1720745211696,28.74,136.99,136.96,10.0]
[1720745212296,37.0314,137.01,136.96,10.0]
[1720745212494,28.74,137.0,136.96,10.0]
[1720745212927,28.74,137.0,136.98,10.0]
[1720745213139,28.74,137.03,137.0,10.0]
[1720745213916,36.0361,137.06,137.0,10.0]
[1720745214114,31.64999414,137.06,137.02,10.0]
[1720745214290,28.74,137.06,137.02,10.0]
[1720745214696,28.74,137.06,137.04,10.0]
[1720745215222,28.74,137.06,137.02,10.0]
[1720745215435,36.036,137.06,137.02,10.0]
[1720745215900,20.0,137.05,137.02,10.0]
[1720745216218,36.036,137.06,137.02,10.0]
[1720745216926,28.74,137.06,137.04,10.0]
[1720745217138,28.74,137.09,137.04,20.0]
[1720745217427,20.0,137.08,137.06,10.0]
[1720745217600,28.74,137.09,137.06,10.0]
[1720745217798,28.74,137.09,137.08,10.0]
[1720745218004,31.56815263,137.12,137.08,10.0]
[1720745218203,28.74,137.12,137.08,10.0]
[1720745218839,28.74,137.12,137.1,10.0]
[1720745219124,28.74,137.14,137.1,20.0]
[1720745219311,50.68,137.14,137.1,20.0]
[1720745219515,50.68,137.14,137.1,10.0]
[1720745219817,57.9719,137.14,137.1,10.0]
[1720745220023,50.68,137.14,137.1,10.0]
[1720745220324,49.2323,137.13,137.1,10.0]
[1720745220894,7.2929,137.12,137.1,10.0]
[1720745221132,50.68,137.12,137.1,10.0]
[1720745221325,20.0,137.11,137.1,10.0]
[1720745221627,50.68,137.12,137.1,10.0]
[1720745221628,21.94,137.12,137.1,10.0]
[1720745221813,21.93,137.13,137.1,10.0]
[1720745222017,20.0,137.12,137.1,10.0]
[1720745222216,41.93,137.12,137.1,10.0]
[1720745222429,70.67,137.12,137.1,10.0]
[1720745222736,21.93,137.17,137.14,10.0]
[1720745223033,16.0098,137.18,137.14,10.0]
[1720745223034,28.74,137.18,137.14,10.0]
[1720745223711,50.67,137.18,137.14,10.0]
[1720745223906,50.67,137.18,137.1,22.8798]
[1720745223907,50.67,137.18,137.12,10.0]
[1720745224104,50.67,137.18,137.12,20.0]
[1720745224424,50.67,137.18,137.14,10.0]
[1720745224425,41.93,137.17,137.14,10.0]
[1720745225328,41.93,137.17,137.12,20.0]
[1720745225917,28.74,137.15,137.12,20.0]
[1720745227032,28.74,137.15,137.14,10.0]
[1720745227333,28.74,137.15,137.14,20.0]
[1720745227508,48.74,137.17,137.14,20.0]
[1720745228217,70.67,137.17,137.14,10.0]
[1720745228431,28.74,137.15,137.12,20.0]
[1720745228808,28.74,137.13,137.12,20.0]
[1720745229936,28.74,137.16,137.12,20.0]
[1720745230242,28.74,137.14,137.12,20.0]
[1720745230427,20.0,137.17,137.16,10.0]
[1720745230749,70.67,137.17,137.14,10.0]
[1720745230911,48.74,137.17,137.14,10.0]
[1720745231828,48.74,137.17,137.14,20.0]
[1720745232031,48.74,137.17,137.16,10.0]
[1720745232411,48.74,137.17,137.14,10.0]
[1720745232412,70.67,137.17,137.14,20.0]
[1720745233338,70.67,137.17,137.14,10.0]
[1720745233641,28.74,137.15,137.14,10.0]
[1720745234722,95.3355,137.15,137.04,10.0]
[1720745234930,95.3355,137.15,137.02,10.0]
[1720745234931,28.74,137.05,137.02,10.0]
[1720745235233,28.74,137.03,136.99,10.0]
[1720745235611,28.74,137.03,137.01,10.0]
[1720745236009,28.74,137.03,137.02,10.0]
[1720745236241,48.74,137.03,137.02,10.0]
[1720745236549,28.74,137.06,137.04,10.0]
[1720745236739,20.0,137.05,137.04,10.0]
[1720745237350,21.93,137.03,136.98,10.0]
[1720745237509,28.74,137.0,136.98,10.0]
[1720745239626,28.74,137.0,136.97,10.0]
[1720745239834,21.93,137.02,136.97,10.0]
[1720745239835,28.74,136.98,136.97,10.0]
[1720745240026,48.74,136.98,136.96,10.0]
[1720745240220,48.74,136.98,136.96,20.0]
[1720745240416,28.74,136.98,136.96,20.0]
[1720745242059,28.74,136.98,136.97,45.0]
[1720745242555,28.74,136.98,136.97,45.34]
[1720745244134,28.74,137.0,136.98,20.0]
[1720745244649,28.74,137.0,136.98,10.0]
[1720745245023,50.67,137.0,136.96,10.0]
[1720745245240,28.74,137.0,136.98,10.0]
[1720745245450,28.74,137.0,136.96,10.0]
[1720745245924,28.74,137.0,136.98,10.0]
[1720745246741,28.74,137.0,136.97,10.0]
[1720745247141,50.67,137.0,136.97,10.0]
[1720745247324,29.2303,136.98,136.93,10.0]
[1720745247530,28.74,136.96,136.93,10.0]
[1720745247745,28.74,136.96,136.91,10.0]
[1720745248047,28.74,136.96,136.93,10.0]
[1720745249054,28.74,136.96,136.95,10.0]
[1720745249353,44.9445,136.99,136.95,10.0]
[1720745249524,20.0,136.98,136.95,10.0]
[1720745250020,28.74,136.97,136.95,10.0]
[1720745250225,28.74,136.97,136.88,7.2014782]
[1720745250226,50.67,136.97,136.93,10.0]
[1720745250527,20.0,136.96,136.93,10.0]
[1720745250847,20.0,136.96,136.95,10.0]
[1720745251029,28.74,136.99,136.95,10.0]
[1720745251529,20.0,136.98,136.95,10.0]
[1720745253050,20.0,136.98,136.97,10.0]
[1720745254240,20.0,136.98,136.97,10.0]
[1720745254438,20.0,136.98,136.95,10.0]
[1720745254832,20.0,136.98,136.97,10.0]
[1720745255031,20.0,136.98,136.95,10.0]
[1720745256163,20.0,136.98,136.93,10.0]
[1720745256325,28.74,136.96,136.93,10.0]
[1720745259952,28.74,136.96,136.91,10.0]
[1720745260343,28.74,136.93,136.89,20.0]
[1720745260839,28.74,136.93,136.91,10.0]
[1720745261543,28.74,136.93,136.89,10.0]
[1720745263261,28.74,136.93,136.91,10.0]
[1720745263635,28.74,136.93,136.89,20.0]
[1720745263835,28.74,136.93,136.89,10.0]
[1720745264364,28.74,136.93,136.91,10.0]
[1720745268954,28.74,136.93,136.89,20.0]
[1720745269263,28.74,136.93,136.9,45.0]
[1720745269643,28.74,136.93,136.91,10.0]
[1720745270545,28.74,136.93,136.91,20.0]
[1720745271463,28.74,136.93,136.91,10.0]
[1720745271862,28.74,136.93,136.91,20.0]
[1720745272962,28.74,136.93,136.91,10.0]
[1720745274851,28.74,136.93,136.9,45.0]
[1720745275049,28.74,136.93,136.91,10.0]
[1720745278367,28.74,136.93,136.89,20.0]
[1720745279664,28.74,136.93,136.91,10.0]
[1720745281368,28.74,136.93,136.89,20.0]
[1720745281663,28.74,136.93,136.91,10.0]
[1720745282773,28.74,136.93,136.91,20.0]
[1720745283955,28.74,136.93,136.91,10.0]
[1720745288775,14.37,136.92,136.91,10.0]
[1720745290690,15.6822,136.96,136.93,10.0]
[1720745290985,14.37,136.94,136.93,10.0]
[1720745291482,57.48,136.99,136.95,10.0]
[1720745291658,14.37,136.96,136.95,10.0]
[1720745292058,14.37,136.96,136.93,65.0]
[1720745292265,57.48,136.99,136.93,10.0]
[1720745292266,14.37,136.94,136.93,10.0]
[1720745294789,28.73,136.95,136.93,10.0]
[1720745296468,28.73,136.99,136.96,10.0]
[1720745297967,28.73,136.99,136.98,10.0]
[1720745298368,28.73,136.99,136.96,10.0]
[1720745300290,28.73,136.99,136.98,10.0]
[1720745300496,48.73,136.99,136.96,10.0]
[1720745301100,48.73,136.99,136.94,10.0]
[1720745301272,28.73,136.96,136.94,10.0]
[1720745305077,48.73,136.99,136.97,10.0]
[1720745305397,20.0,136.98,136.95,10.0]
[1720745305568,20.0,136.98,136.97,10.0]
[1720745305998,20.0,136.98,136.95,10.0]
[1720745306572,20.0,136.98,136.97,10.0]
[1720745306773,20.0,136.98,136.95,10.0]
[1720745307193,27.3004,136.98,136.95,10.0]
[1720745307401,27.3004,136.98,136.93,10.0]
[1720745307599,7.3011,136.97,136.93,10.0]
[1720745308093,28.73,136.96,136.93,10.0]
[1720745308797,36.0314,136.96,136.93,10.0]
[1720745309792,36.0314,136.96,136.88,0.8546782]
[1720745309793,57.9614,136.96,136.91,10.0]
[1720745310112,57.9614,136.96,136.83,11.460626]
[1720745310113,29.2378,136.84,136.83,11.460626]
[1720745310300,57.9682,136.84,136.76,10.0]
[1720745310488,41.93,136.83,136.76,10.0]
[1720745310687,20.0,136.83,136.78,10.0]
[1720745310874,20.0,136.83,136.76,10.0]
[1720745310875,27.3084,136.83,136.76,10.0]
[1720745311078,41.93,136.83,136.76,10.0]
[1720745311579,29.2391,136.82,136.76,10.0]
[1720745311811,20.0,136.81,136.76,10.0]
[1720745314593,29.2416,136.77,136.75,10.8546782]
[1720745314792,36.0415,136.78,136.75,10.8546782]
[1720745315109,36.042,136.76,136.75,10.8546782]
[1720745315410,56.042,136.76,136.75,10.8546782]
[1720745315916,77.972,136.76,136.75,10.8546782]
[1720745316311,77.972,136.76,136.75,0.8546782]
[1720745316529,77.972,136.76,136.69,10.0]
[1720745316530,7.3132,136.74,136.69,10.0]
[1720745316827,28.73,136.71,136.69,10.0]
[1720745317193,28.73,136.71,136.67,10.0]
[1720745317395,28.73,136.71,136.68,10.0]
[1720745321215,28.73,136.71,136.68,20.0]
[1720745321523,28.73,136.73,136.7,10.0]
[1720745321827,28.73,136.73,136.69,45.0]
[1720745322713,28.73,136.73,136.68,10.0]
[1720745324114,28.73,136.71,136.68,10.0]
[1720745324311,28.73,136.71,136.66,20.0]
[1720745324599,28.73,136.71,136.68,10.0]
[1720745325411,28.73,136.71,136.67,10.0]
[1720745325611,28.73,136.71,136.68,10.0]
[1720745326340,28.73,136.73,136.7,10.0]
[1720745327239,28.73,136.73,136.71,10.0]
[1720745327405,28.73,136.75,136.71,10.0]
[1720745329135,28.73,136.75,136.7,10.0]
[1720745329715,28.73,136.75,136.7,20.0]
[1720745330705,28.73,136.78,136.67,0.34]
[1720745330706,21.93,136.77,136.68,10.0]
[1720745330911,28.73,136.73,136.67,15.5376]
[1720745331121,28.73,136.73,136.68,10.0]
[1720745332513,28.73,136.73,136.7,10.0]
[1720745334625,28.73,136.73,136.68,20.0]
[1720745334833,28.73,136.73,136.7,10.0]
[1720745335321,28.73,136.73,136.69,45.0]
[1720745335528,28.73,136.73,136.68,10.0]
[1720745335916,28.73,136.73,136.69,10.0]
[1720745336314,28.73,136.73,136.71,10.0]
[1720745336512,28.73,136.75,136.71,10.0]
[1720745336725,20.0,136.74,136.71,10.0]
[1720745337327,28.73,136.75,136.71,10.0]
[1720745337545,23.6205,136.79,136.74,10.0]
[1720745337709,28.73,136.77,136.74,10.0]
[1720745338210,28.73,136.77,136.72,65.17]
[1720745338409,28.73,136.77,136.72,65.0]
[1720745338827,28.73,136.77,136.74,10.0]
[1720745340306,28.73,136.77,136.72,55.0]
[1720745340511,28.73,136.77,136.74,10.0]
[1720745341022,28.73,136.79,136.75,45.0]
[1720745341428,28.73,136.79,136.74,10.0]
[1720745342034,28.73,136.79,136.75,55.0]
[1720745342738,7.3096,136.81,136.77,20.0]
[1720745342739,28.73,136.81,136.77,20.0]
[1720745342909,28.73,136.81,136.79,10.0]
[1720745343108,6.5099,136.84,136.79,20.0]
[1720745343109,9.37410566,136.84,136.79,20.0]
[1720745343327,6.5099,136.84,136.79,10.0]
[1720745344024,6.5099,136.84,136.79,20.0]
[1720745344025,28.73,136.83,136.79,20.0]
[1720745347925,28.73,136.83,136.82,10.0]
[1720745348121,28.73,136.86,136.83,10.0]
[1720745348421,28.73,136.86,136.82,55.0]
[1720745348619,28.73,136.86,136.82,45.0]
[1720745350431,28.73,136.86,136.83,10.0]
[1720745352242,28.73,136.86,136.84,10.0]
[1720745353140,28.73,136.86,136.83,10.0]
[1720745354037,28.73,136.86,136.83,20.0]
[1720745354543,28.73,136.88,136.85,10.0]
[1720745354843,20.0,136.87,136.85,20.0]
[1720745355745,28.73,136.89,136.85,20.0]
[1720745355929,28.73,136.87,136.83,10.0]
[1720745356545,28.73,136.87,136.84,10.0]
[1720745357246,18.52863702,136.92,136.88,20.0]
[1720745357430,28.73,136.9,136.86,10.0]
[1720745357739,28.73,136.9,136.87,55.0]
[1720745357937,28.73,136.9,136.87,45.0]
[1720745358134,28.73,136.9,136.88,20.0]
[1720745358338,28.73,136.92,136.91,10.0]
[1720745358545,28.73,136.93,136.89,10.0]
[1720745359823,28.73,136.93,136.89,20.0]
[1720745360024,18.4350125,136.96,136.89,20.0]
[1720745360025,28.73,136.91,136.89,10.0]
[1720745361053,28.73,136.91,136.88,10.0]
[1720745361356,28.73,136.91,136.89,45.0]
[1720745362052,28.73,136.91,136.89,55.0]
[1720745362631,28.73,136.94,136.91,10.0]
[1720745368645,28.73,136.94,136.93,10.0]
[1720745369042,28.73,136.94,136.91,10.0]
[1720745370849,28.73,136.94,136.9,10.0]
[1720745371032,28.73,136.92,136.9,10.0]
[1720745372949,28.73,136.92,136.91,10.0]
[1720745373155,28.73,136.92,136.9,10.0]
[1720745373337,28.73,136.92,136.91,10.0]
[1720745374657,28.73,136.95,136.91,55.0]
[1720745374954,28.73,136.95,136.91,10.0]
[1720745376554,28.74,136.92,136.9,10.0]
[1720745376734,14.37,136.91,136.9,10.0]
[1720745376940,14.37,136.91,136.9,55.0]
[1720745378738,7.3015,136.96,136.9,55.0]
[1720745378933,20.0,136.95,136.92,10.0]
[1720745379441,14.37,136.93,136.9,65.0]
[1720745379643,20.0,136.95,136.92,10.0]
[1720745379852,14.37,136.93,136.92,10.0]
[1720745380658,14.37,136.93,136.9,65.0]
[1720745380961,14.37,136.91,136.9,65.0]
[1720745382536,14.37,136.91,136.9,55.0]
[1720745382742,14.37,136.91,136.87,10.0]
[1720745382968,14.37,136.88,136.87,10.0]
[1720745383472,14.37,136.88,136.84,10.0]
[1720745383647,14.37,136.85,136.84,10.0]
[1720745384197,14.37,136.85,136.83,10.0]
[1720745384478,14.37,136.84,136.83,10.0]
[1720745384668,6.0317,136.91,136.85,10.0]
[1720745384853,20.0,136.9,136.85,10.0]
[1720745385061,14.37,136.86,136.85,10.0]
[1720745386085,20.0,136.9,136.87,20.0]
[1720745386291,57.48,136.92,136.87,20.0]
[1720745386588,14.37,136.88,136.87,20.0]
[1720745386896,14.37,136.88,136.87,65.0]
[1720745388054,6.4502,136.94,136.9,10.0]
[1720745388255,14.37,136.91,136.9,10.0]
[1720745388480,14.37,136.91,136.9,55.0]
[1720745388677,14.37,136.91,136.9,10.0]
[1720745389363,14.37,136.91,136.88,10.0]
[1720745389558,14.37,136.89,136.88,10.0]
[1720745389759,14.37,136.89,136.88,55.0]
[1720745390181,14.37,136.89,136.88,10.0]
[1720745391497,14.37,136.89,136.81,297.9722]
[1720745391498,14.37,136.89,136.85,10.0]
[1720745391697,14.37,136.86,136.85,10.0]
[1720745392673,14.37,136.86,136.83,20.0]
[1720745392873,14.37,136.86,136.84,45.0]
[1720745393175,23.0073,136.9,136.84,45.0]
[1720745393385,14.37,136.85,136.84,45.0]
[1720745397203,15.7026,136.9,136.86,20.0]
[1720745397380,14.37,136.87,136.86,20.0]
[1720745398080,26.83445312,136.93,136.88,10.0]
[1720745398273,57.48,136.92,136.9,10.0]
[1720745398597,14.37,136.91,136.9,10.0]
[1720745399587,10.17298402,136.96,136.9,55.0]
[1720745399777,14.37,136.91,136.9,55.0]
[1720745400600,14.37,136.91,136.87,20.0]
[1720745400781,57.48,136.92,136.89,10.0]
[1720745400979,14.37,136.9,136.89,10.0]
[1720745401202,29.2317,136.96,136.91,10.0]
[1720745401378,14.37,136.92,136.89,20.0]
[1720745401581,14.37,136.9,136.89,20.0]
[1720745401781,14.37,136.9,136.89,65.0]
[1720745402181,14.37,136.9,136.89,55.0]
[1720745402486,14.37,136.9,136.85,20.0]
[1720745402980,14.37,136.86,136.85,20.0]
[1720745403499,14.37,136.86,136.83,20.0]
[1720745404003,22.204,136.91,136.83,20.0]
[1720745404204,22.204,136.91,136.87,10.0]
[1720745404413,14.37,136.88,136.87,10.0]
[1720745404582,14.37,136.88,136.86,10.0]
[1720745404910,14.37,136.87,136.85,10.0]
[1720745405078,14.37,136.86,136.84,10.0]
[1720745405286,14.37,136.85,136.84,10.0]
[1720745405503,29.5085,136.91,136.85,10.0]
[1720745405682,14.37,136.86,136.85,10.0]
[1720745405883,14.37,136.86,136.85,55.0]
[1720745406086,22.204,136.91,136.87,10.0]
[1720745406300,14.37,136.88,136.87,10.0]
[1720745406604,14.37,136.88,136.87,55.0]
[1720745407022,14.37,136.88,136.85,10.0]
[1720745407309,14.37,136.86,136.85,10.0]
[1720745407502,14.37,136.86,136.85,55.0]
[1720745407688,14.37,136.86,136.84,20.0]
[1720745408196,14.37,136.85,136.84,20.0]
[1720745408395,14.37,136.85,136.84,65.17]
[1720745408606,14.37,136.85,136.84,65.0]
[1720745409001,22.204,136.91,136.86,10.0]
[1720745409184,14.37,136.87,136.86,10.0]
[1720745409684,22.204,136.91,136.88,10.0]
[1720745409879,14.37,136.89,136.88,10.0]
[1720745410604,14.37,136.89,136.86,10.0]
[1720745410787,14.37,136.87,136.86,10.0]
[1720745410985,14.37,136.87,136.86,45.0]
[1720745411295,14.37,136.87,136.86,55.0]
[1720745411487,15.8016,136.91,136.88,10.0]
[1720745411682,13.5825,136.94,136.88,10.0]
[1720745411878,14.37,136.89,136.88,10.0]
[1720745412079,14.37,136.89,136.88,55.0]
[1720745412882,15.2383,136.95,136.92,10.0]
[1720745413187,6.0667,136.97,136.94,10.0]
[1720745413394,14.37,136.95,136.94,10.0]
[1720745413614,14.37,136.95,136.92,20.0]
[1720745413813,6.0667,136.97,136.93,45.0]
[1720745413983,80.1198,136.99,136.94,10.0]
[1720745414187,14.37,136.95,136.94,10.0]
[1720745414388,14.37,136.95,136.93,45.0]
[1720745414583,14.37,136.94,136.93,45.0]
[1720745416821,28.73,136.97,136.94,10.0]
[1720745418999,22.6396,136.99,136.93,45.0]
[1720745419000,28.73,136.99,136.96,10.0]
[1720745419191,28.73,137.01,136.98,10.0]
[1720745421222,20.0,137.0,136.98,10.0]
[1720745422121,20.0,137.0,136.95,10.0]
[1720745422304,27.2992,137.0,136.96,45.0]
[1720745422915,27.2992,137.0,136.94,10.0]
[1720745423110,36.0298,136.99,136.93,10.0]
[1720745423306,36.0298,136.99,136.92,10.0]
[1720745423307,27.3004,136.98,136.92,10.0]
[1720745423507,28.73,136.97,136.92,10.0]
[1720745424433,28.73,136.97,136.93,20.0]
[1720745425096,48.73,136.98,136.93,20.0]
[1720745425540,48.73,136.98,136.94,45.0]
[1720745425701,77.9604,136.98,136.91,10.17]
[1720745425903,7.3009,136.97,136.92,10.0]
[1720745426107,7.3009,136.97,136.91,10.0]
[1720745426336,28.73,136.96,136.91,10.0]
[1720745427527,28.73,136.96,136.92,10.0]
[1720745428410,28.73,136.96,136.92,20.0]
[1720745428611,36.0303,136.98,136.92,20.0]
[1720745428817,28.73,136.98,136.92,20.0]
[1720745429019,20.0,136.97,136.93,45.0]
[1720745429228,28.73,137.0,136.94,20.0]
[1720745429432,28.73,137.0,136.96,10.0]
[1720745429644,28.73,137.0,136.94,20.0]
[1720745430331,36.0293,137.0,136.94,20.0]
[1720745430520,20.0,136.99,136.94,20.0]